bitfinex/quotes_BTCUSD_20251009
["timestamp","ask_amount","ask_price","bid_price","bid_amount"]
[1760000416954,0.00137627,121340.0,121330.0,1.439852]
[1760000417164,0.00137627,121340.0,121330.0,1.674212]
[1760000417556,0.00237627,121340.0,121330.0,1.674212]
[1760000417986,0.00237627,121340.0,121330.0,0.57919369]
[1760000418207,0.00237627,121340.0,121330.0,1.41589923]
[1760000418824,0.00137627,121340.0,121330.0,1.41589923]
[1760000419179,0.00137627,121340.0,121330.0,1.18253923]
[1760000419393,0.00137627,121340.0,121330.0,1.41589923]
[1760000419667,0.00137627,121340.0,121330.0,1.41689923]
[1760000419878,0.00137627,121340.0,121330.0,1.675212]
[1760000420324,0.00137627,121340.0,121330.0,1.355132]
[1760000420533,0.00137627,121340.0,121330.0,1.675212]
[1760000420751,0.00137627,121340.0,121330.0,0.58019369]
[1760000420974,0.00137627,121340.0,121330.0,1.41689923]
[1760000421361,0.00137627,121340.0,121330.0,1.09681923]
[1760000421628,0.00137627,121340.0,121330.0,1.41689923]
[1760000422665,0.00137627,121340.0,121330.0,1.09681923]
[1760000422870,0.00137627,121340.0,121330.0,1.18253923]
[1760000423064,0.00137627,121340.0,121330.0,1.48169892]
[1760000423934,0.00137627,121340.0,121330.0,1.30925843]
[1760000424550,0.00137627,121340.0,121330.0,1.07493843]
[1760000424770,0.00137627,121340.0,121330.0,1.65344348]
[1760000424975,0.00137627,121340.0,121330.0,1.17493842]
[1760000425183,0.00137627,121340.0,121330.0,1.54386225]
[1760000425456,0.00137627,121340.0,121330.0,1.80318224]
[1760000425816,0.00137627,121340.0,121330.0,0.88049214]
[1760000426028,0.00137627,121340.0,121330.0,1.80318224]
[1760000428042,0.00137627,121340.0,121330.0,1.45899719]
[1760000429176,0.06619503,121390.0,121380.0,0.16477179]
[1760000429397,0.23095324,121390.0,121380.0,0.64323684]
[1760000429794,0.23352685,121390.0,121380.0,0.64323684]
[1760000430009,0.00257361,121390.0,121380.0,0.64323684]
[1760000430459,0.00307876,121390.0,121380.0,0.7565108]
[1760000431528,0.00307876,121390.0,121380.0,0.77067612]
[1760000432733,0.00307876,121390.0,121380.0,0.53639612]
[1760000432940,0.00307876,121390.0,121380.0,0.85635612]
[1760000433155,0.00307876,121390.0,121380.0,0.53639612]
[1760000433351,0.00307876,121390.0,121380.0,0.85635612]
[1760000433754,0.00307876,121390.0,121380.0,0.53639612]
[1760000433980,0.00307876,121390.0,121380.0,0.59929815]
[1760000434285,0.00307876,121390.0,121380.0,0.91921815]
[1760000435273,0.00307876,121390.0,121380.0,0.81921815]
[1760000435477,0.00307876,121390.0,121380.0,0.98398994]
[1760000435714,0.00307876,121390.0,121380.0,0.74974994]
[1760000435919,0.00307876,121390.0,121380.0,0.98398994]
[1760000436331,0.00307876,121390.0,121380.0,0.74974994]
[1760000436754,0.00307876,121390.0,121380.0,0.98398994]
[1760000437594,0.00307876,121390.0,121380.0,0.74974994]
[1760000437817,0.00307876,121390.0,121380.0,1.08974994]
[1760000438031,0.00307876,121390.0,121380.0,1.32398994]
[1760000438287,0.00307876,121390.0,121380.0,1.46408689]
[1760000438518,0.00307876,121390.0,121380.0,1.35414184]
[1760000438726,0.00307876,121390.0,121380.0,1.11990184]
[1760000438937,0.00307876,121390.0,121380.0,1.35414184]
[1760000439992,0.00307876,121390.0,121380.0,1.69832689]
[1760000440416,0.00307876,121390.0,121380.0,1.11990184]
[1760000440683,0.00307876,121390.0,121380.0,1.45410183]
[1760000441515,0.00307876,121390.0,121380.0,1.21990183]
[1760000441716,0.00307876,121390.0,121380.0,1.45410183]
[1760000442321,0.00307876,121390.0,121380.0,1.13422183]
[1760000442563,0.00307876,121390.0,121380.0,1.36842183]
[1760000442722,0.00307876,121390.0,121380.0,1.45410183]
[1760000444838,0.00311876,121390.0,121380.0,1.45410183]
[1760000445645,0.00311876,121390.0,121380.0,1.21990183]
[1760000445852,0.00311876,121390.0,121380.0,1.45406183]
[1760000446636,0.00311876,121390.0,121380.0,1.21990183]
[1760000446862,0.00311876,121390.0,121380.0,1.45406183]
[1760000447546,0.00311876,121390.0,121380.0,1.21990183]
[1760000447766,0.00311876,121390.0,121380.0,1.45406183]
[1760000449340,0.00311876,121390.0,121380.0,1.35406184]
[1760000449561,0.00311876,121390.0,121380.0,1.45406183]
[1760000449973,0.00311876,121390.0,121380.0,1.36838183]
[1760000450197,0.00311876,121390.0,121380.0,1.45406183]
[1760000451816,0.00311876,121390.0,121380.0,1.45402183]
[1760000452432,0.00311876,121390.0,121380.0,1.13422183]
[1760000452821,0.00311876,121390.0,121380.0,1.35402184]
[1760000453025,0.00311876,121390.0,121380.0,1.45402183]
[1760000454334,0.00311876,121390.0,121380.0,1.35402184]
[1760000454541,0.00311876,121390.0,121380.0,1.45402183]
[1760000455182,0.00311876,121390.0,121380.0,1.35402184]
[1760000455616,0.00311876,121390.0,121380.0,1.11990184]
[1760000455821,0.00311876,121390.0,121380.0,1.35402184]
[1760000463228,0.00311876,121390.0,121380.0,1.69820689]
[1760000463429,0.00311876,121390.0,121380.0,1.37902183]
[1760000463852,0.00311876,121390.0,121380.0,1.14490183]
[1760000464048,0.00311876,121390.0,121380.0,1.37898183]
[1760000465447,0.00311876,121390.0,121380.0,1.47898182]
[1760000465866,0.0742666,121430.0,121400.0,0.00823723]
[1760000466126,0.0004,121430.0,121420.0,0.87905445]
[1760000466337,0.0004,121430.0,121420.0,0.96217651]
[1760000466542,0.0004,121430.0,121420.0,1.19625651]
[1760000466946,0.0004,121430.0,121420.0,1.2565193]
[1760000467146,0.0004,121430.0,121420.0,1.0224393]
[1760000467356,0.0004,121430.0,121420.0,1.2565193]
[1760000467974,0.0004,121430.0,121420.0,1.0224393]
[1760000468220,0.0004,121430.0,121420.0,1.2565193]
[1760000468627,0.0004,121430.0,121420.0,1.0224393]
[1760000468826,0.0004,121430.0,121420.0,1.2565193]
[1760000469412,0.0004,121430.0,121420.0,1.5991993]
[1760000469770,0.0004,121430.0,121420.0,1.62419929]
[1760000469985,0.0002,121450.0,121440.0,0.53484228]
[1760000470191,0.01907657,121460.0,121450.0,0.87901377]
[1760000470395,0.01907657,121460.0,121450.0,0.96213583]
[1760000470812,0.01907657,121460.0,121450.0,1.19617583]
[1760000471263,0.0191598,121460.0,121450.0,1.19617583]
[1760000471503,0.0191598,121460.0,121450.0,1.19717583]
[1760000471913,0.02276003,121460.0,121450.0,1.19717583]
[1760000472121,0.02276003,121460.0,121450.0,0.96313583]
[1760000472353,0.02276003,121460.0,121450.0,0.63291409]
[1760000472555,0.02276003,121460.0,121450.0,0.71855409]
[1760000472774,0.02276003,121460.0,121450.0,1.21113914]
[1760000472979,0.02276003,121460.0,121450.0,1.06273914]
[1760000473151,0.02276003,121460.0,121450.0,1.29677914]
[1760000473384,0.02276003,121460.0,121450.0,0.63291409]
[1760000473600,0.02276003,121460.0,121450.0,1.29573914]
[1760000473987,0.02276003,121460.0,121450.0,1.21009914]
[1760000474201,0.02276003,121460.0,121450.0,1.29673914]
[1760000474414,0.02276003,121460.0,121450.0,0.97709914]
[1760000474618,0.02276003,121460.0,121450.0,1.06273914]
[1760000474830,0.02276003,121460.0,121450.0,1.29673914]
[1760000475029,0.02276003,121460.0,121450.0,0.63291409]
[1760000475235,0.02276003,121460.0,121450.0,0.86691409]
[1760000475437,0.02276003,121460.0,121450.0,0.63291409]
[1760000475845,0.02276003,121460.0,121450.0,0.95255409]
[1760000476719,0.02276003,121460.0,121450.0,0.63291409]
[1760000476926,0.02276003,121460.0,121450.0,0.83676219]
[1760000477082,0.02276003,121460.0,121450.0,0.92240219]
[1760000477698,0.02276003,121460.0,121450.0,0.60276219]
[1760000477917,0.02276003,121460.0,121450.0,0.92240219]
[1760000478239,0.02276003,121460.0,121450.0,0.83676219]
[1760000478469,0.02276003,121460.0,121450.0,0.92240219]
[1760000478792,0.02276003,121460.0,121450.0,0.68840219]
[1760000478973,0.02276003,121460.0,121450.0,0.92236219]
[1760000480696,0.02276003,121460.0,121450.0,0.68840219]
[1760000480864,0.02276003,121460.0,121450.0,0.92236219]
[1760000481282,0.02276003,121460.0,121450.0,0.68840219]
[1760000481479,0.39683329,121460.0,121450.0,0.90839888]
[1760000481767,0.39683329,121460.0,121450.0,0.31808206]
[1760000481989,0.39683329,121460.0,121450.0,0.08412206]
[1760000482198,0.39683329,121460.0,121450.0,0.31808206]
[1760000482618,0.39683329,121460.0,121450.0,0.48275888]
[1760000483062,0.39683329,121460.0,121450.0,0.48175888]
[1760000483303,0.39683329,121460.0,121440.0,0.60789404]
[1760000483304,0.16467682,121450.0,121440.0,0.59033038]
[1760000483524,0.37408682,121450.0,121440.0,0.08564]
[1760000483754,0.16469951,121440.0,121420.0,0.33190083]
[1760000483966,0.31176951,121440.0,121430.0,0.73866394]
[1760000484180,0.37410951,121440.0,121430.0,0.57396]
[1760000484590,0.37410951,121440.0,121420.0,0.31633822]
[1760000484807,0.31177394,121430.0,121420.0,0.33347956]
[1760000485024,0.27692394,121430.0,121420.0,1.25162461]
[1760000485473,0.27692394,121430.0,121420.0,1.01766461]
[1760000485679,0.37215394,121430.0,121420.0,0.56743956]
[1760000485888,0.27692394,121430.0,121420.0,0.67347956]
[1760000486097,0.2548849,121430.0,121420.0,1.16532671]
[1760000486571,0.04988,121440.0,121430.0,0.16470394]
[1760000486773,0.21455732,121450.0,121440.0,0.16469038]
[1760000486989,0.27803732,121450.0,121430.0,0.39866394]
[1760000487200,0.30703038,121440.0,121430.0,0.59788715]
[1760000487410,0.30703038,121440.0,121430.0,0.57396]
[1760000487411,0.37051038,121440.0,121430.0,0.57396]
[1760000487618,0.37051038,121440.0,121430.0,0.23396]
[1760000487824,0.16470394,121430.0,121420.0,1.19377858]
[1760000488034,0.30703038,121440.0,121420.0,1.45166573]
[1760000488243,0.30703038,121440.0,121430.0,0.25788715]
[1760000488450,0.37051038,121440.0,121430.0,0.25788715]
[1760000489310,0.37051038,121440.0,121420.0,1.16985143]
[1760000489526,0.27528038,121440.0,121430.0,0.25788715]
[1760000489742,0.22279116,121450.0,121440.0,0.16469038]
[1760000489743,0.21455682,121450.0,121440.0,0.16469038]
[1760000489940,0.27803682,121450.0,121440.0,0.65653753]
[1760000491095,0.11336,121450.0,121440.0,0.65653753]
[1760000491551,0.0690398,121460.0,121450.0,0.16467682]
[1760000491743,0.1325198,121460.0,121450.0,0.65652397]
[1760000492788,0.0191598,121460.0,121450.0,0.65652397]
[1760000493114,0.1297498,121460.0,121450.0,0.42256397]
[1760000493306,0.2249798,121460.0,121450.0,0.65652397]
[1760000494118,0.1297498,121460.0,121450.0,0.65652397]
[1760000494523,0.1297498,121460.0,121450.0,0.42256397]
[1760000494750,0.0191598,121460.0,121450.0,0.42256397]
[1760000494952,0.0191598,121460.0,121450.0,0.65652397]
[1760000495165,0.0191598,121460.0,121450.0,0.42256397]
[1760000495368,0.0191598,121460.0,121450.0,0.65652397]
[1760000496126,0.0191598,121460.0,121450.0,0.99753318]
[1760000496335,0.0191598,121460.0,121450.0,1.45332508]
[1760000496983,0.0191598,121460.0,121450.0,0.70359078]
[1760000497191,0.0191598,121460.0,121450.0,1.45332508]
[1760000497404,0.02276003,121460.0,121450.0,1.71121223]
[1760000497607,0.02276003,121460.0,121450.0,1.45332508]
[1760000498002,0.02276003,121460.0,121450.0,1.21936508]
[1760000498140,0.02276003,121460.0,121450.0,1.45332508]
[1760000498897,0.02276003,121460.0,121450.0,1.45432508]
[1760000499522,0.02276003,121460.0,121450.0,1.71221223]
[1760000499743,0.02276003,121460.0,121450.0,1.47825223]
[1760000499952,1e-08,121460.0,121450.0,1.50325222]
[1760000500366,1e-08,121460.0,121450.0,1.73721222]
[1760000501771,1e-08,121460.0,121450.0,0.72959077]
[1760000501939,1e-08,121460.0,121450.0,2.08306719]
[1760000502146,1e-08,121460.0,121450.0,1.42090719]
[1760000502340,1e-08,121460.0,121450.0,2.08306719]
[1760000503111,1e-08,121460.0,121450.0,2.08302719]
[1760000504621,1e-08,121460.0,121450.0,2.28302719]
[1760000505953,1e-08,121460.0,121450.0,1.62090719]
[1760000506151,1e-08,121460.0,121450.0,2.02514004]
[1760000506922,1e-08,121460.0,121450.0,1.50936574]
[1760000507130,1e-08,121460.0,121450.0,2.02514004]
[1760000507530,1e-08,121460.0,121450.0,1.59694004]
[1760000507749,1e-08,121460.0,121450.0,1.68254004]
[1760000510556,1e-08,121460.0,121450.0,1.65754005]
[1760000511056,1e-08,121460.0,121450.0,1.9153872]
[1760000516501,1e-08,121460.0,121450.0,1.6815072]
[1760000516708,1e-08,121460.0,121450.0,1.9153872]
[1760000517356,1e-08,121460.0,121450.0,1.6815072]
[1760000517562,1e-08,121460.0,121450.0,1.9153872]
[1760000519160,1e-08,121460.0,121450.0,1.8297872]
[1760000519367,1e-08,121460.0,121450.0,2.2578672]
[1760000520159,1e-08,121460.0,121450.0,1.99998005]
[1760000520602,1e-08,121460.0,121450.0,1.33802005]
[1760000520821,1e-08,121460.0,121450.0,1.65420508]
[1760000521676,1e-08,121460.0,121450.0,1.42032508]
[1760000521893,1e-08,121460.0,121450.0,1.07683793]
[1760000522125,0.10571001,121460.0,121450.0,0.53439888]
[1760000522336,0.36407327,121460.0,121450.0,0.76827888]
[1760000522547,0.62196042,121460.0,121450.0,0.201]
[1760000522758,0.36407327,121460.0,121450.0,0.201]
[1760000522946,0.62196042,121460.0,121450.0,0.43488]
[1760000523217,0.62196042,121460.0,121450.0,0.201]
[1760000523432,0.62196042,121460.0,121450.0,0.43488]
[1760000523874,0.96296963,121460.0,121450.0,0.201]
[1760000524122,0.70508248,121460.0,121450.0,0.201]
[1760000524374,0.70508248,121460.0,121450.0,0.2]
[1760000524375,0.635068,121460.0,121450.0,0.2]
[1760000525013,0.62196042,121460.0,121450.0,0.2]
[1760000527090,0.36407327,121460.0,121450.0,0.2]
[1760000527341,0.62196042,121460.0,121450.0,0.2]
[1760000527989,0.37745214,121460.0,121450.0,0.2]
[1760000528199,0.63533929,121460.0,121450.0,0.2]
[1760000528866,0.36407327,121460.0,121450.0,0.2]
[1760000529085,0.10571001,121460.0,121450.0,0.62256397]
[1760000529299,1e-08,121460.0,121450.0,0.85644397]
[1760000529502,0.29090545,121460.0,121450.0,0.59855682]
[1760000529728,0.27037327,121460.0,121450.0,0.85644397]
[1760000529944,1e-08,121460.0,121450.0,0.62256397]
[1760000530156,1e-08,121460.0,121450.0,0.88659587]
[1760000530362,1e-08,121460.0,121450.0,0.97223587]
[1760000530803,1e-08,121460.0,121450.0,1.65324508]
[1760000531664,1e-08,121460.0,121450.0,1.41936508]
[1760000531919,1e-08,121460.0,121450.0,1.39535793]
[1760000532127,1e-08,121460.0,121450.0,1.50351992]
[1760000532551,1e-08,121460.0,121450.0,1.26963992]
[1760000532760,1e-08,121460.0,121450.0,1.13747078]
[1760000532977,1e-08,121460.0,121450.0,1.50351992]
[1760000534070,1e-08,121460.0,121450.0,0.81795078]
[1760000534277,1e-08,121460.0,121450.0,1.50351992]
[1760000534934,0.05953001,121460.0,121450.0,0.81795078]
[1760000535150,0.10571001,121460.0,121450.0,1.13747078]
[1760000535825,1e-08,121460.0,121450.0,1.13747078]
[1760000536034,1e-08,121460.0,121450.0,1.50351992]
[1760000541798,0.22419327,121460.0,121450.0,0.65327396]
[1760000542022,0.36407327,121460.0,121450.0,0.73891396]
[1760000542285,0.36407327,121460.0,121450.0,0.2301519]
[1760000542474,0.36407327,121460.0,121450.0,0.4640319]
[1760000542738,0.36407327,121460.0,121450.0,0.43388]
[1760000542986,0.77163979,121460.0,121450.0,0.2]
[1760000543199,0.36407327,121460.0,121450.0,0.2]
[1760000543883,1e-08,121460.0,121450.0,0.73072596]
[1760000544105,0.16466327,121460.0,121450.0,0.99475786]
[1760000545261,1e-08,121460.0,121450.0,0.99475786]
[1760000545480,0.16466327,121460.0,121450.0,0.99475786]
[1760000545891,0.16466327,121460.0,121450.0,0.62870872]
[1760000546756,1e-08,121460.0,121450.0,0.62870872]
[1760000546966,1e-08,121460.0,121450.0,0.71183078]
[1760000547176,1e-08,121460.0,121450.0,1.55807227]
[1760000548254,1e-08,121460.0,121450.0,1.32419227]
[1760000548469,1e-08,121460.0,121450.0,1.55807227]
[1760000550015,1e-08,121460.0,121450.0,1.66675227]
[1760000550222,1e-08,121460.0,121450.0,1.92563226]
[1760000551567,1e-08,121460.0,121450.0,2.02563225]
[1760000551795,1e-08,121460.0,121450.0,1.79175225]
[1760000552017,1e-08,121460.0,121450.0,2.02563225]
[1760000552246,1e-08,121460.0,121450.0,2.02663225]
[1760000553093,1e-08,121460.0,121450.0,2.02367215]
[1760000553311,1e-08,121460.0,121450.0,1.78979215]
[1760000553524,1e-08,121460.0,121450.0,2.02367215]
[1760000553953,1e-08,121460.0,121450.0,1.86082996]
[1760000554363,1e-08,121460.0,121450.0,1.8641247]
[1760000554977,1e-08,121460.0,121450.0,1.973644]
[1760000555156,1e-08,121460.0,121450.0,2.207524]
[1760000555417,1e-08,121460.0,121450.0,1.8641247]
[1760000555629,1e-08,121460.0,121450.0,1.9496447]
[1760000556020,1e-08,121460.0,121450.0,2.293044]
[1760000556504,1e-08,121460.0,121450.0,2.207444]
[1760000556706,1e-08,121460.0,121450.0,2.293044]
[1760000557145,1e-08,121460.0,121450.0,1.9496447]
[1760000557351,1e-08,121460.0,121450.0,2.059204]
[1760000557558,1e-08,121460.0,121450.0,1.9496447]
[1760000557782,1e-08,121460.0,121450.0,1.2876847]
[1760000558002,1e-08,121460.0,121450.0,1.7158047]
[1760000558216,1e-08,121460.0,121450.0,1.9496447]
[1760000558852,1e-08,121460.0,121450.0,2.293044]
[1760000559288,0.0002,121480.0,121470.0,1.24660019]
[1760000559505,0.0002,121480.0,121470.0,1.32984382]
[1760000559707,0.0002,121480.0,121470.0,1.56368382]
[1760000560129,0.0004,121490.0,121480.0,0.55978804]
[1760000560359,0.0004,121490.0,121480.0,1.4153087]
[1760000560564,0.0004,121490.0,121480.0,1.9916287]
[1760000561091,0.0004,121490.0,121480.0,1.99492287]
[1760000563212,0.0004,121490.0,121480.0,1.99592287]
[1760000563416,0.0004,121490.0,121480.0,2.05798918]
[1760000563836,0.0004,121490.0,121480.0,2.05794918]
[1760000564428,0.0004,121490.0,121480.0,1.82414918]
[1760000564631,0.0004,121490.0,121480.0,2.05794918]
[1760000564875,0.0004,121490.0,121480.0,1.39606918]
[1760000565014,0.0004,121490.0,121480.0,2.05794918]
[1760000565463,0.00194214,121490.0,121480.0,2.05794918]
[1760000566607,0.00194214,121490.0,121480.0,2.05790918]
[1760000566821,0.00194214,121490.0,121480.0,1.82410918]
[1760000567238,0.00194214,121490.0,121480.0,2.05790918]
[1760000567626,0.00194214,121490.0,121480.0,1.39606918]
[1760000567854,0.00194214,121490.0,121480.0,1.82410918]
[1760000568214,0.00194214,121490.0,121480.0,2.05790918]
[1760000568644,0.0002,121510.0,121500.0,0.55976094]
[1760000568865,0.0002,121510.0,121500.0,1.5634816]
[1760000569085,0.00122779,121510.0,121500.0,0.99867912]
[1760000569301,0.00122779,121510.0,121500.0,1.25718199]
[1760000569507,0.00122779,121510.0,121500.0,1.02338199]
[1760000569713,0.00122779,121510.0,121500.0,1.68522199]
[1760000570117,0.00122779,121510.0,121500.0,1.02338199]
[1760000570339,0.00122779,121510.0,121500.0,1.45138199]
[1760000570556,0.00122779,121510.0,121500.0,1.02338199]
[1760000570771,0.00122779,121510.0,121500.0,1.68514199]
[1760000571597,0.00122779,121510.0,121500.0,2.02854129]
[1760000571815,0.00122779,121510.0,121500.0,1.68514199]
[1760000572217,0.00122779,121510.0,121500.0,1.45138199]
[1760000572421,1e-08,121510.0,121500.0,2.02854129]
[1760000572621,1e-08,121510.0,121500.0,2.12854128]
[1760000573275,1e-08,121510.0,121500.0,1.44174268]
[1760000573506,1e-08,121510.0,121500.0,1.78514198]
[1760000573881,1e-08,121510.0,121500.0,1.12338198]
[1760000574092,1e-08,121510.0,121500.0,1.78514198]
[1760000574295,1e-08,121510.0,121500.0,1.35714198]
[1760000574496,1e-08,121510.0,121500.0,1.78514198]
[1760000574827,1e-08,121510.0,121500.0,1.12338198]
[1760000575039,1e-08,121510.0,121500.0,1.45138199]
[1760000575391,1e-08,121510.0,121500.0,1.68514199]
[1760000576351,1e-08,121510.0,121500.0,1.25714199]
[1760000576569,1e-08,121510.0,121500.0,1.68506199]
[1760000577171,1e-08,121510.0,121500.0,1.45130199]
[1760000577353,1e-08,121510.0,121500.0,1.68506199]
[1760000577556,1e-08,121510.0,121500.0,1.45130199]
[1760000577801,1e-08,121510.0,121500.0,1.68506199]
[1760000578562,1e-08,121510.0,121500.0,1.45130199]
[1760000578753,1e-08,121510.0,121500.0,1.68502199]
[1760000579869,1e-08,121510.0,121500.0,1.45130199]
[1760000580076,1e-08,121510.0,121500.0,1.68502199]
[1760000580319,1e-08,121510.0,121500.0,1.45130199]
[1760000580507,1e-08,121510.0,121500.0,1.68502199]
[1760000580914,1e-08,121510.0,121500.0,1.45130199]
[1760000581128,1e-08,121510.0,121500.0,1.68502199]
[1760000581336,1e-08,121510.0,121500.0,1.02338199]
[1760000581536,1e-08,121510.0,121500.0,1.68502199]
[1760000581756,1e-08,121510.0,121500.0,0.6549827]
[1760000581977,1e-08,121510.0,121500.0,0.95295913]
[1760000582178,1e-08,121510.0,121500.0,0.97367913]
[1760000582375,1e-08,121510.0,121500.0,0.63367913]
[1760000582585,1e-08,121510.0,121500.0,1.29295913]
[1760000582802,1e-08,121510.0,121500.0,1.05923913]
[1760000583000,1e-08,121510.0,121500.0,1.29295913]
[1760000583388,1e-08,121510.0,121500.0,0.60012793]
[1760000583617,0.26669551,121510.0,121500.0,0.18107888]
[1760000583961,0.35716551,121510.0,121500.0,0.27788301]
[1760000584172,0.35716551,121510.0,121500.0,0.59716301]
[1760000584398,0.35716551,121510.0,121500.0,0.93716301]
[1760000584619,0.35716551,121510.0,121500.0,0.34]
[1760000584824,0.35716551,121510.0,121500.0,0.31928]
[1760000585450,1e-08,121510.0,121500.0,0.62372025]
[1760000585697,1e-08,121510.0,121500.0,0.94056231]
[1760000585924,1e-08,121510.0,121500.0,1.28056231]
[1760000586361,1e-08,121510.0,121500.0,1.04684231]
[1760000586587,1e-08,121510.0,121500.0,1.28056231]
[1760000587778,1e-08,121510.0,121500.0,0.93716301]
[1760000588029,1e-08,121510.0,121500.0,1.04684231]
[1760000588391,1e-08,121510.0,121500.0,1.28056231]
[1760000590541,1e-08,121510.0,121500.0,0.93716301]
[1760000590779,1e-08,121510.0,121500.0,0.96128231]
[1760000591003,1e-08,121510.0,121500.0,0.61788301]
[1760000591222,0.05784001,121510.0,121500.0,0.93716301]
[1760000591452,1e-08,121510.0,121500.0,0.96128231]
[1760000591679,1e-08,121510.0,121500.0,1.28056231]
[1760000592112,1e-08,121510.0,121500.0,0.93716301]
[1760000592328,1e-08,121510.0,121500.0,1.28056231]
[1760000594343,1e-08,121510.0,121500.0,1.30468161]
[1760000594554,1e-08,121510.0,121500.0,1.3055623]
[1760000594781,1e-08,121510.0,121500.0,1.09654466]
[1760000594990,1e-08,121510.0,121500.0,1.33026466]
[1760000596774,1e-08,121510.0,121500.0,0.66758536]
[1760000596972,1e-08,121510.0,121500.0,1.30526467]
[1760000599163,1e-08,121510.0,121500.0,1.07154467]
[1760000599388,4.001e-05,121510.0,121500.0,1.30526467]
[1760000599807,4.001e-05,121510.0,121500.0,1.09654466]
[1760000600013,4.001e-05,121510.0,121500.0,1.33026466]
[1760000600644,4.001e-05,121510.0,121500.0,1.43994396]
[1760000600829,4.001e-05,121510.0,121500.0,1.33026466]
[1760000603222,4.001e-05,121510.0,121500.0,1.09654466]
[1760000603425,4.001e-05,121510.0,121500.0,1.33026466]
[1760000604116,4.001e-05,121510.0,121500.0,1.09654466]
[1760000604327,4.001e-05,121510.0,121500.0,1.33026466]
[1760000604933,4.001e-05,121510.0,121500.0,0.98686536]
[1760000605140,4.001e-05,121510.0,121500.0,1.33026466]
[1760000605783,4.001e-05,121510.0,121500.0,1.01098466]
[1760000605991,4.001e-05,121510.0,121500.0,1.67262466]
[1760000606211,4.001e-05,121510.0,121500.0,1.01098466]
[1760000606409,4.001e-05,121510.0,121500.0,1.67262466]
[1760000607885,4.001e-05,121510.0,121500.0,1.43890466]
[1760000608092,4.001e-05,121510.0,121500.0,2.1014643]
[1760000608750,4.001e-05,121510.0,121500.0,1.8677443]
[1760000609173,4.001e-05,121510.0,121500.0,2.1014643]
[1760000610053,4.001e-05,121510.0,121500.0,1.8677443]
[1760000610267,4.001e-05,121510.0,121500.0,2.1014643]
[1760000610695,4.001e-05,121510.0,121500.0,2.87370324]
[1760000611335,4.001e-05,121510.0,121500.0,2.63998324]
[1760000611501,4.001e-05,121510.0,121500.0,2.87370324]
[1760000612151,4.001e-05,121510.0,121500.0,2.87470324]
[1760000612359,4.001e-05,121510.0,121500.0,2.1024643]
[1760000612728,4.001e-05,121510.0,121500.0,2.1024243]
[1760000613413,4.001e-05,121510.0,121500.0,1.9437443]
[1760000613611,4.001e-05,121510.0,121500.0,2.20242429]
[1760000613839,4.001e-05,121510.0,121500.0,1.54082429]
[1760000614055,4.001e-05,121510.0,121500.0,2.20242429]
[1760000614904,0.31623597,121570.0,121550.0,0.16454134]
[1760000615115,0.48689895,121570.0,121560.0,0.2638319]
[1760000615328,0.54629895,121570.0,121560.0,0.2638319]
[1760000615774,0.62058909,121570.0,121560.0,0.2638319]
[1760000616190,0.62309481,121570.0,121560.0,0.2638319]
[1760000616410,0.62509481,121570.0,121560.0,0.2638319]
[1760000616887,0.62309481,121570.0,121560.0,0.2638319]
[1760000617126,0.16454134,121550.0,121540.0,0.36125]
[1760000617339,0.16454134,121550.0,121540.0,0.2638319]
[1760000617340,0.61209432,121550.0,121540.0,0.2638319]
[1760000617544,0.35468134,121550.0,121540.0,0.19470677]
[1760000617988,0.61209432,121550.0,121540.0,0.42838677]
[1760000618205,0.61209432,121550.0,121540.0,0.0301519]
[1760000618415,0.16456683,121540.0,121520.0,0.27139196]
[1760000618627,0.46596981,121540.0,121530.0,0.73824841]
[1760000619039,0.26795683,121540.0,121530.0,0.73824841]
[1760000619175,0.35470683,121540.0,121530.0,0.76840031]
[1760000619380,0.61211981,121540.0,121530.0,0.76840031]
[1760000619585,0.35470683,121540.0,121530.0,0.76840031]
[1760000619772,0.61211981,121540.0,121530.0,0.53472031]
[1760000619972,0.61211981,121540.0,121530.0,0.76840031]
[1760000620413,0.61211981,121540.0,121530.0,0.53472031]
[1760000620573,0.61211981,121540.0,121530.0,0.76840031]
[1760000620963,0.61366099,121540.0,121530.0,0.76840031]
[1760000622280,0.35624801,121540.0,121530.0,0.76840031]
[1760000622484,0.10493118,121540.0,121530.0,0.80240031]
[1760000622714,0.00154118,121540.0,121530.0,1.16418535]
[1760000623414,0.00154118,121540.0,121530.0,0.93050535]
[1760000623634,0.00154118,121540.0,121530.0,0.90677237]
[1760000623849,0.00154118,121540.0,121530.0,1.16418535]
[1760000624291,0.00154118,121540.0,121530.0,1.42159833]
[1760000625633,0.00154118,121540.0,121530.0,1.27347833]
[1760000625871,0.00154118,121540.0,121530.0,1.50719833]
[1760000626741,0.00154118,121540.0,121530.0,0.93050535]
[1760000626958,0.00154118,121540.0,121530.0,0.99481535]
[1760000627158,0.00154118,121540.0,121530.0,1.22857535]
[1760000627364,0.00154118,121540.0,121530.0,0.90925535]
[1760000627572,0.00154118,121540.0,121530.0,1.14301535]
[1760000627783,0.06324118,121540.0,121530.0,0.65184237]
[1760000627992,0.06324118,121540.0,121530.0,0.99481535]
[1760000628363,0.06324118,121540.0,121530.0,0.97116237]
[1760000628364,0.10884118,121540.0,121530.0,0.97116237]
[1760000628579,0.10884118,121540.0,121530.0,0.65184237]
[1760000628779,0.19274118,121540.0,121530.0,0.90701047]
[1760000628981,0.19274118,121540.0,121530.0,0.93716237]
[1760000629155,0.10884118,121540.0,121530.0,0.96986237]
[1760000629736,0.10884118,121540.0,121530.0,0.88430237]
[1760000629951,0.10884118,121540.0,121530.0,0.96986237]
[1760000631046,0.35729605,121540.0,121530.0,0.53883396]
[1760000631216,0.35729605,121540.0,121530.0,0.11327396]
[1760000631415,0.35729605,121540.0,121530.0,0.43255396]
[1760000631804,0.35729605,121540.0,121530.0,0.0301519]
[1760000632006,0.35729605,121540.0,121530.0,0.2638719]
[1760000632663,0.35729605,121540.0,121530.0,0.42844031]
[1760000632812,0.35729605,121540.0,121530.0,0.2638719]
[1760000633237,0.35729605,121540.0,121530.0,0.0301519]
[1760000633464,0.35729605,121540.0,121530.0,0.2638319]
[1760000633670,0.35729605,121540.0,121530.0,0.0301519]
[1760000634098,0.35729605,121540.0,121530.0,0.2638319]
[1760000634307,0.16457821,121530.0,121510.0,0.62617173]
[1760000634515,0.1073,121520.0,121510.0,0.79485379]
[1760000634719,0.10781381,121520.0,121510.0,1.05991379]
[1760000634926,0.00051381,121520.0,121510.0,1.05991379]
[1760000635127,0.06221381,121520.0,121510.0,1.09006569]
[1760000635338,0.06221381,121520.0,121510.0,1.15038875]
[1760000635539,0.06271922,121520.0,121510.0,1.15038875]
[1760000635946,0.10763922,121520.0,121510.0,1.15038875]
[1760000636561,0.10545922,121520.0,121510.0,1.15038875]
[1760000637253,0.10545922,121520.0,121510.0,1.11900875]
[1760000637448,0.35549118,121520.0,121510.0,0.78830973]
[1760000637653,0.19090922,121520.0,121510.0,1.10754973]